Workbook

Sheet Übersetzungstabelle (hidden)
A1: Auswahl: | B1: 2 | C1: Für Englisch Trennzeichen über Optionen - Erweitert - Trennzeichen…. Automatisch anpassen Bei Sprachänderung Dropdown für BW-Pr. Aktualisieren
B3: 1 | C3: 2 | D3: 3 | E3: 4
A4: =IF($B$1=$B$3,B4,IF($B$1=$C$3,C4, IF($B$1=$D$3,D4, IF($B$1=$E$3,E4,"Error!")))) -> Englisch | B4: Deutsch | C4: Englisch | D4: Französisch | E4: Spanisch
A5: =IF($B$1=$B$3,B5,IF($B$1=$C$3,C5, IF($B$1=$D$3,D5, IF($B$1=$E$3,E5,"Error!")))) -> Glass fittings with logic | B5: Glasbeschläge mit System | C5: Glass fittings with logic | D5: Ferrures pour verre innovatrices | E5: Herraje innovador para vidrio
A6: Portavant G 120: profile and glass dimensions calculator | B6: Portavant G 120: Profil- und Glasmaßrechner | C6: Portavant G 120: profile and glass dimensions calculator | D6: Portavant G 120 : calculateur de dimensions des profilés et vantaux | E6: Portavant G 120: calculadora de perfiles y dimensiones
A7: Please select the appropriate category: | B7: Bitte wählen Sie die zutreffende Kategorie aus: | C7: Please select the appropriate category: | D7: Veuillez sélectionner la catégorie appropriée: | E7: Seleccione la categoría adecuada:
A8: Installation situations without sidelight | B8: Einbausituationen ohne Festflügel | C8: Installation situations without sidelight | D8: Configurations de pose sans vantail fixe | E8: Situaciones de montaje sin hoja fija
A9: Installation situations with sidelight | B9: Einbausituationen mit Festflügel | C9: Installation situations with sidelight | D9: Configurations de pose avec vantail fixe | E9: Situaciones de montaje con hoja fija
A10: Wall mounting | B10: Wandmontage | C10: Wall mounting | D10: Montage mural | E10: Montaje a pared
A11: with door frame | B11: mit Zarge | C11: with door frame | D11: avec chambranle de porte | E11: con marco de puerta
A12: Wall/ Ceiling mounting | B12: Wand-/ Deckenmontage | C12: Wall/ Ceiling mounting | D12: Montage mural / au plafond | E12: Montaje a pared/ techo
A13: Ceiling mounting | B13: Deckenmontage | C13: Ceiling mounting | D13: Montage au plafond | E13: Montaje a techo
A14: with door stop profiles | B14: mit Anschlag-/ Schließkasten | C14: with door stop profiles | D14: avec profilés d'arrêt | E14: con perfiles de tope
A15: 1-sided | B15: 1-seitig | C15: 1-sided | D15: unilatéral | E15: unilateral
A16: 2-sided | B16: 2-seitig | C16: 2-sided | D16: bilatéral | E16: bilateral
A17: Select | B17: Auswählen | C17: Select | D17: Sélectionner | E17: Seleccionar
A18: 0
A19: Portavant G 120 : wall mounting with door frame, one-sided (without door stop profiles) | B19: Portavant G 120: Wandmontage mit Zarge, einseitig (ohne Anschlag-/Schließkasten) | C19: Portavant G 120 : wall mounting with door frame, one-sided (without door stop profiles) | D19: Portavant G 120 : montage mural avec chambranle de porte, unilatéral (sans profilés d'arrêt) | E19: Portavant G 120: montaje a pared con marco de puerta, unilateral (sin perfiles de tope)
A20: Portavant G 120: wall/ceiling mounting without sidelight, one-sided (without door stop profiles and without door frame) | B20: Portavant G 120: Wandmontage/Deckenmontage ohne Festflügel, einseitig (ohne Anschlag-/Schließkasten und ohne Zarge) | C20: Portavant G 120: wall/ceiling mounting without sidelight, one-sided (without door stop profiles and without door frame) | D20: Portavant G 120 : montage mural / plafond sans vantail fixe, unilatéral (sans profilés d'arrêt et sans chambranle de porte) | E20: Portavant G 120: montaje a pared / techo sin hoja fija, unilateral (sin perfiles de tope y sin marco de puerta)
A21: Portavant G 120: wall/ceiling mounting without sidelight, two-sided | B21: Portavant G 120: Wandmontage/Deckenmontage ohne Festflügel, zweiseitig | C21: Portavant G 120: wall/ceiling mounting without sidelight, two-sided | D21: Portavant G 120 : montage mural / plafond sans vantail fixe, bilatéral | E21: Portavant G 120: montaje a pared / techo sin hoja fija, bilateral
A22: Portavant G 120: ceiling mounting with sidelight, one-sided (without door stop profiles) | B22: Portavant G 120: Deckenmontage mit Festflügel, einseitig (ohne Anschlag-/Schließkasten) | C22: Portavant G 120: ceiling mounting with sidelight, one-sided (without door stop profiles) | D22: Portavant G 120 : montage plafond avec vantail fixe, unilatéral (sans profilés d'arrêt) | E22: Portavant G 120: montaje a techo con hoja fija, unilateral (sin perfiles de tope)
A23: Portavant G 120: ceiling mounting with sidelight, two-sided | B23: Portavant G 120: Deckenmontage mit Festflügel, zweiseitig | C23: Portavant G 120: ceiling mounting with sidelight, two-sided | D23: Portavant G 120 : montage plafond avec vantail fixe, bilatéral | E23: Portavant G 120: montaje a techo con hoja fija, bilateral
A24: =IF($B$1=$B$3,B24,IF($B$1=$C$3,C24, IF($B$1=$D$3,D24, IF($B$1=$E$3,E24,"Error!")))) -> Portavant G 120: wall mounting, one-sided with door stop profiles | B24: Portavant G 120: Wandmontage, einseitig mit Anschlag-/Schließkasten | C24: Portavant G 120: wall mounting, one-sided with door stop profiles | D24: Portavant G 120 : montage mural, unilatéral avec profilés d'arrêt | E24: Portavant G 120: montaje a pared, unilateral con perfiles de tope
A25: Portavant G 120: ceiling mounting with sidelight, one-sided with door stop profiles | B25: Portavant G 120: Deckenmontage mit Festflügel, einseitig mit Anschlag-/Schließkasten | C25: Portavant G 120: ceiling mounting with sidelight, one-sided with door stop profiles | D25: Portavant G 120 : montage plafond avec vantail fixe, unilatéral avec profilés d'arrêt | E25: Portavant G 120: montaje a techo con hoja fija, unilateral con perfiles de tope
A26: 0
A27: User input | B27: Benutzer-Eingabe | C27: User input | D27: Saisie utilisateur | E27: Entrada del usuario
A28: 0
A29: Invalid entry! | B29: Unzulässige Eingabe! | C29: Invalid entry! | D29: Entrée invalide! | E29: ¡Entrada invalida!
A30: Please enter a whole number greater than or equal to zero. | B30: Bitte geben Sie eine ganze Zahl größer oder gleich Null ein. | C30: Please enter a whole number greater than or equal to zero. | D30: Veuillez saisir un nombre entier supérieur ou égal à zéro. | E30: Ingresa un número entero mayor o igual a cero.
A31: The weight must be a decimal number greater than or equal to zero [kg]. | B31: Das Gewicht muss eine Dezimalzahl größer oder gleich Null sein [kg]. | C31: The weight must be a decimal number greater than or equal to zero [kg]. | D31: Le poids doit être un nombre décimal supérieur ou égal à zéro [kg]. | E31: El peso debe ser un número decimal mayor o igual a cero [kg].
A32: Please select from the drop-down list. | B32: Bitte wählen Sie aus der Drop-Down-Liste aus. | C32: Please select from the drop-down list. | D32: Veuillez sélectionner dans la liste déroulante. | E32: Seleccione de la lista desplegable.
A33: Max. profile length = … | B33: Max. Profillänge = … | C33: Max. profile length = … | D33: Longueur max. du profilé = … | E33: Longitud máx. de perfil = …
A34: 0
A35: clear width (building) | B35: Lichte Weite (bauseits) | C35: clear width (building) | D35: largeur d'ouverture (baie) | E35: apertura útil (edificación)
A36: system height | B36: Systemhöhe | C36: system height | D36: hauteur du système | E36: altura total del sistema
A37: glass thickness of sliding sash | B37: Glasstärke Schiebeflügel | C37: glass thickness of sliding sash | D37: épaisseur du verre du vantail coulissant | E37: espesor de vidrio de la hoja corredera
A38: width of door frame | B38: Zargenbreite | C38: width of door frame | D38: largeur du chambranle de porte | E38: ancho del marco de puerta
A39: glass thickness of sidelight | B39: Glasstärke Festflügel | C39: glass thickness of sidelight | D39: épaisseur du verre du vantail fixe | E39: espesor de vidrio de la hoja fija
A40: additional width of sliding sash for handle | B40: Zusatzbreite Schiebeflügel für Griff | C40: additional width of sliding sash for handle | D40: largeur supplémentaire du vantail coulissant pour la poignée | E40: ancho adicional de la hoja corredera para pomo
A41: additional width of sidelight | B41: Zusatzbreite Festflügel | C41: additional width of sidelight | D41: largeur supplémentaire du vantail fixe | E41: ancho adicional de la hoja fija
A42: additional width of sidelight (≥ 3 mm) | B42: Zusatzbreite Festflügel (≥ 3 mm) | C42: additional width of sidelight (≥ 3 mm) | D42: largeur supplémentaire du vantail fixe (≥ 3 mm) | E42: ancho adicional de la hoja fija (≥ 3 mm)
A43: weight of handle | B43: Gewicht Griff | C43: weight of handle | D43: poids de la poignée | E43: peso de pomo
A44: Would you like to use a floor-wall profile (U profile) horizontally on the floor? | B44: Möchten Sie ein Boden-Wand-Profil waagerecht am Boden verwenden? | C44: Would you like to use a floor-wall profile (U profile) horizontally on the floor? | D44: Souhaitez-vous utiliser un profilé de mur-sol (profilé en U) horizontalement au sol? | E44: ¿Le gustaría utilizar un perfil de suelo/pared horizontalmente a suelo?
A45: Would you like to use a floor-wall profile (U profile) vertically to attach the sidelight to the wall? | B45: Möchten Sie ein Boden-Wand-Profil zur senkrechten Befestigung des Festflügels an der Wand verwenden? | C45: Would you like to use a floor-wall profile (U profile) vertically to attach the sidelight to the wall? | D45: Souhaitez-vous utiliser un profilé mur-sol (profilé en U) verticalement pour fixer le vantail fixe au mur? | E45: ¿Le gustaría utilizar un perfil de suelo/pared verticalmente para fijar la hoja fija a pared?
A46: Would you like to use a floor-wall profile (U profile) vertically to attach the sidelights to the wall? | B46: Möchten Sie ein Boden-Wand-Profil zur senkrechten Befestigung der Festflügel an der Wand verwenden? | C46: Would you like to use a floor-wall profile (U profile) vertically to attach the sidelights to the wall? | D46: Souhaitez-vous utiliser un profilé mur-sol (profilé en U) verticalement pour fixer les vantaux fixes au mur? | E46: ¿Le gustaría utilizar un perfil de suelo/pared verticalmente para fijar las hojas fijas a pared?
A47: Yes | B47: Ja | C47: Yes | D47: Oui | E47: Si
A48: No | B48: Nein | C48: No | D48: Non | E48: No
A49: 0
A50: Formulas | B50: Formeln | C50: Formulas | D50: Formules | E50: Fórmulas
A51: (The planning criteria to determine the number of spacer profiles required can be found in the article/price list.) | B51: (Die Planungsgrundlagen zur Bestimmung der Menge der benötigten Distanzprofile finden Sie in der Artikel-/Preisliste.) | C51: (The planning criteria to determine the number of spacer profiles required can be found in the article/price list.) | D51: (Les bases de calcul pour déterminer le nombre de profilés d'écartement requis se trouvent dans la liste d'articles / le tarif.) | E51: (Los principios de planificación para determinar el número necesario de perfiles de distancia se puede encontrar en la lista de artículs / tarifa.)
A52: 0
A53: Automatic calculation of glass dimensions and profile lengths | B53: Auto-Berechnung Glasmaße und Profillänge | C53: Automatic calculation of glass dimensions and profile lengths | D53: Calcul automatique des dimensions du verre et des longueurs des profilés | E53: Cálculo automático de dimensiones de vidrio y longitudes de los perfiles
A54: Length in mm | B54: Länge in mm | C54: Length in mm | D54: Longueur en mm | E54: Longitud en mm
A55: Qty. in pcs. | B55: Menge in St. | C55: Qty. in pcs. | D55: Qté. en pcs. | E55: Cantidad en piezas
A56: per | B56: je | C56: per | D56: par | E56: por
A57: glass height of sliding sash | B57: Glashöhe Schiebeflügel | C57: glass height of sliding sash | D57: hauteur du verre du vantail coulissant | E57: altura de vidrio de la hoja corredera
A58: glass height of sidelight | B58: Glashöhe Festflügel | C58: glass height of sidelight | D58: hauteur du verre du vantail fixe | E58: altura de vidrio de la hoja fija
A59: glass width of sliding sash | B59: Glasbreite Schiebeflügel | C59: glass width of sliding sash | D59: largeur du verre du vantail coulissant | E59: ancho de vidrio de la hoja corredera
A60: glass width of sidelight | B60: Glasbreite Festflügel | C60: glass width of sidelight | D60: largeur du verre du vantail fixe | E60: ancho de vidrio de la hoja fija
A61: length of track/cover profile | B61: Länge Laufschiene/Blende | C61: length of track/cover profile | D61: longueur rail de roulement / capot | E61: longitud de riel de rodamiento/tapeta
A62: length of track/cover/spacer profile(s) | B62: Länge Laufschiene/Blende/Distanzprofil(e) | C62: length of track/cover/spacer profile(s) | D62: longueur rail de roulement / capot / profilé(s) d'écartement | E62: longitud de riel de rodamiento/tapeta/perfil(es) de distancia
A63: length of door stop profiles | B63: Länge Anschlag-/Schließkasten | C63: length of door stop profiles | D63: longueur profilés d'arrêt | E63: longitud de perfiles de tope
A64: length of infill profile | B64: Länge Abdeckprofil | C64: length of infill profile | D64: longueur profilé de recouvrement | E64: longitud de perfil de cubrimiento
A65: length of floor-wall profile on the floor | B65: Länge Boden-Wand-Profil unten | C65: length of floor-wall profile on the floor | D65: longueur profilé de mur-sol en bas | E65: longitud de perfil de suelo/pared abajo
A66: lengths of floor-wall profiles on the floor | B66: Längen Boden-Wand-Profile unten | C66: lengths of floor-wall profiles on the floor | D66: longueurs profilés de mur-sol en bas | E66: longitudes de perfiles de suelo/pared abajo
A67: length of floor-wall profile on the wall | B67: Länge Boden-Wand-Profil seitlich | C67: length of floor-wall profile on the wall | D67: longueur profilé de mjur-sol latéral | E67: longitud de perfil de suelo/pared lateral
A68: lengths of floor-wall profiles on the wall | B68: Längen Boden-Wand-Profile seitlich | C68: lengths of floor-wall profiles on the wall | D68: longueurs profilés de mur-sol latéral | E68: longitudes de perfiles de suelo/pared lateral
A69: approx. length of silicone gasket type 1 (item no. 617 254…) | B69: Ungefähre Länge Silikonband Typ 1 (Art.-Nr. 617 254…) | C69: approx. length of silicone gasket type 1 (item no. 617 254…) | D69: longueur approx. bande silicone type 1 (réf. 617 254…) | E69: longitud aprox. cinta de silicona tipo 1 (n.° de artículo 617 254…)
A70: approx. length of silicone gasket type 2 (item no. 617 255…) | B70: Ungefähre Länge Silikonband Typ 2 (Art.-Nr. 617 255…) | C70: approx. length of silicone gasket type 2 (item no. 617 255…) | D70: longueur approx. bande silicone type 2 (réf. 617 255…) | E70: longitud aprox. cinta de silicona tipo 2 (n.° de artículo 617 255…)
A71: approx. length of silicone gasket type 3 (item no. 617 256…) | B71: Ungefähre Länge Silikonband Typ 3 (Art.-Nr. 617 256…) | C71: approx. length of silicone gasket type 3 (item no. 617 256…) | D71: longueur approx. bande silicone type 3 (réf. 617 256…) | E71: longitud aprox. cinta de silicona tipo 3 (n.° de artículo 617 256…)
A72: For information: | B72: Zur Information: | C72: For information: | D72: Pour information: | E72: Para información:
A73: clear width (door passage) | B73: Lichte Weite (Türdurchgang) | C73: clear width (door passage) | D73: largeur de passage | E73: apertura útil (paso de la puerta)
A74: 0
A75: Glass dimensions of sliding sash | B75: Glasmaße Schiebeflügel | C75: Glass dimensions of sliding sash | D75: Dimensions du verre du vantail coulissant | E75: Dimensiones de vidrio de la hoja corredera
A76: (Glass cutouts/drillings for handles and/or mechanical locks might probably be required.) | B76: (Ggf. Glasbohrungen für Griffe und/oder mechanische Schlösser erforderlich.) | C76: (Glass cutouts/drillings for handles and/or mechanical locks might probably be required.) | D76: (En cas de poignées et/ou de serrure mécanique des perçages sont nécessaires.)
A77: Note | B77: Bemerkung | C77: Note | D77: Remarque | E77: Nota
A78: Glass dimensions of sidelight | B78: Glasmaße Festflügel | C78: Glass dimensions of sidelight | D78: Dimensions du verre du vantail fixe | E78: Dimensiones de vidrio de la hoja fija
A79: 0
A80: Check of sash weight, height-width ratio and minimum sash width | B80: Überprüfung Flügelgewicht, Aspektverhältnis und Mindestflügelbreite | C80: Check of sash weight, height-width ratio and minimum sash width | D80: Contrôle du poids du vantail, du rapport hauteur / largeur et de la largeur minimale du vantail | E80: Comprobación del peso de la hoja, la relación de aspecto y el ancho mínimo de la hoja
A81: Okay. | B81: Okay. | C81: Okay. | D81: Ok | E81: OK.
A82: Error! | B82: Falsch! | C82: Error! | D82: Invalide! | E82: ¡Error!
A83: Weight of sliding sash with handle (≤ 120 kg) | B83: Flügelgewicht Schiebeflügel mit Griff (≤ 120 kg) | C83: Weight of sliding sash with handle (≤ 120 kg) | D83: Poids du vantail coulissant poignée inclue (≤ 120 kg) | E83: Peso de la hoja corredera (≤ 120 kg)
A84: Attention: the maximum permissible sash weight is exceeded! | B84: Achtung: Das maximal zulässige Flügelgewicht wird überschritten! | C84: Attention: the maximum permissible sash weight is exceeded! | D84: Attention: le poids du vantail maximal autorisé est dépassé! | E84: Atención: ¡Se supera el peso máximo de hoja permitido!
A85: Height-width ratio of the sliding sash (≤ 3) | B85: Verhältnis von Höhe zu Breite des Schiebeflügels (≤ 3) | C85: Height-width ratio of the sliding sash (≤ 3) | D85: Rapport hauteur/largeur du vantail coulissant (≤ 3) | E85: Relación altura/ancho de la hoja corredera (≤ 3)
A86: Height-width ratio of the sliding sashes (≤ 3) | B86: Verhältnis von Höhe zu Breite der Schiebeflügel (≤ 3) | C86: Height-width ratio of the sliding sashes (≤ 3) | D86: Rapport hauteur/largeur des vantaux coulissants (≤ 3) | E86: Relación altura/ancho de las hojas correderas (≤ 3)
A87: Attention: the maximum permissible height-width ratio of 3:1 is exceeded! | B87: Achtung: Das max. zulässige Aspektverhältnis von 3 : 1 wird überschritten! | C87: Attention: the maximum permissible height-width ratio of 3:1 is exceeded! | D87: Attention: le rapport hauteur / largeur maximal autorisé (3 : 1) est dépassé! | E87: Atención: ¡Se supera la relación de aspecto máximo permitido!
A88: Glass width of sliding sash (≥ 580 mm) | B88: Glasbreite Schiebeflügel (≥ 580 mm) | C88: Glass width of sliding sash (≥ 580 mm) | D88: Largeur du verre du vantail coulissant (≥ 580 mm) | E88: Ancho de vidrio de la hoja corredera (≥ 580 mm)
A89: Attention: the glass width of the sliding sash is too small (minimum sash width = 580 mm)! | B89: Achtung: Die Glasbreite des Schiebeflügels ist zu gering (Mindestglasbreite Schiebeflügel 580 mm)! | C89: Attention: the glass width of the sliding sash is too small (minimum sash width = 580 mm)! | D89: Attention: la largeur du verre du vantail coulissant est trop étroite (largeur minimale = 580 mm)! | E89: Atención: ¡El ancho del vidrio de la hoja corredera es demasiado pequeño (ancho minimo = 580 mm)!
A90: 0
A91: Legend | B91: Legende | C91: Legend | D91: Légende | E91: Leyenda
A92: H = system height HS = glass height of sliding sash HP = profile height LS = length of track/cover profile LK = length of door stop profiles LW = clear width (building) LWt = clear width (door passage) WS = glass width of sliding sash (with handle) WSZ = additional width of sliding sash for handle | B92: H = Systemhöhe HS = Glashöhe Schiebeflügel HP = Höhe Profil LS = Länge Laufschiene/Blende LK = Länge Anschlag-/Schließkasten LW = Lichte Weite (bauseits) LWt = Lichte Weite (Türdurchgang) WS = Glasbreite Schiebeflügel (mit Griff) WSZ = Zusatzbreite Schiebeflügel für Griff | C92: H = system height HS = glass height of sliding sash HP = profile height LS = length of track/cover profile LK = length of door stop profiles LW = clear width (building) LWt = clear width (door passage) WS = glass width of sliding sash (with handle) WSZ = additional width of sliding sash for handle | D92: H = hauteur du système HS = hauteur du verre du vantail coulissant HP = hauteur du profilé LS = longueur du rail de roulement / du capot LK = longueur des profilés d'arrêt LW = largeur d'ouverture (baie) LWt = largeur de passage WS = largeur du verre du vantail coulissant (avec poignée) WSZ = largeur supplémentaire du vantail coulissant pour poignée | E92: H = altura total del sistema HS = altura de vidrio de la hoja corredera HP = altura del perfil LS = longitud del riel de rodamiento/de la tapeta LK = longitud de los perfiles de tope LW = apertura útil (edificación) LWt = apertura útil (paso de la puerta) WS = ancho de vidrio de la hoja corredera (con pomo) WSZ = ancho adicional para pomo
A93: H = system height HF = glass height of sidelight HS = glass height of sliding sash HP = profile height LS = length of track/cover profile LK = length of door stop profiles LW = clear width (building) LWt = clear width (door passage) WF = glass width of sidelight WS = glass width of sliding sash (with handle) WFZ = additional width of sidelight WSZ = additional width of sliding sash for handle | B93: H = Systemhöhe HF = Glashöhe Festflügel HS = Glashöhe Schiebeflügel HP = Höhe Profil LS = Länge Laufschiene/Blende LK = Länge Anschlag-/Schließkasten LW = Lichte Weite (bauseits) LWt = Lichte Weite (Durchgangsbreite) WF = Glasbreite Festflügel WS = Glasbreite Schiebeflügel (mit Griff) WFZ = Zusatzbreite Festflügel WSZ = Zusatzbreite Schiebeflügel für Griff | C93: H = system height HF = glass height of sidelight HS = glass height of sliding sash HP = profile height LS = length of track/cover profile LK = length of door stop profiles LW = clear width (building) LWt = clear width (door passage) WF = glass width of sidelight WS = glass width of sliding sash (with handle) WFZ = additional width of sidelight WSZ = additional width of sliding sash for handle | D93: H = hauteur du système HF = hauteur du verre du vantail fixe HS = hauteur du verre du vantail coulissant HP = hauteur du profilé LS = longueur du rail de roulement / du capot LK = longueur des profilés d'arrêt LW = largeur d'ouverture (baie) LWt = largeur de passage WF = largeur du verre du vantail fixe WS = largeur du verre du vantail coulissant (avec poignée) WFZ = largeur supplémentaire du vantail fixe WSZ = largeur supplémentaire du vantail coulissant pour poignée | E93: H = altura total del sistema HF = altura de vidrio de la hoja fija HS = altura de vidrio de la hoja corredera HP = altura del perfil LS = longitud del riel de rodamiento/de la tapeta LK = longitud de los perfiles de tope LW = apertura útil (edificación) LWt = apertura útil (paso de la puerta) WF = ancho de vidrio de la hoja fija WS = ancho de vidrio de la hoja corredera (con pomo) WFZ = ancho adicional de la hoja fija WSZ = ancho adicional para pomo
A94: H = system height HS = glass height of sliding sash LS = length of track/cover profile LW = clear width (building) LWt = clear width (door passage) WS = glass width of sliding sash (with handle) WSZ = additional width of sliding sash for handle | B94: H = Systemhöhe HS = Glashöhe Schiebeflügel LS = Länge Laufschiene/Blende LW = Lichte Weite (bauseits) LWt = Lichte Weite (Durchgangsbreite) WS = Glasbreite Schiebeflügel (mit Griff) WSZ = Zusatzbreite Schiebeflügel für Griff | C94: H = system height HS = glass height of sliding sash LS = length of track/cover profile LW = clear width (building) LWt = clear width (door passage) WS = glass width of sliding sash (with handle) WSZ = additional width of sliding sash for handle | D94: H = hauteur du système HS = hauteur du verre du vantail coulissant LS = longueur du rail de roulement / du capot LW = largeur d'ouverture (baie) LWt = largeur de passage WS = largeur du verre du vantail coulissant (avec poignée) WSZ = largeur supplémentaire du vantail coulissant pour poignée | E94: H = altura total del sistema HS = altura de vidrio de la hoja corredera LS = longitud del riel de rodamiento/de la tapeta LW = apertura útil (edificación) LWt = apertura útil (paso de la puerta) WS = ancho de vidrio de la hoja corredera (con pomo) WSZ = ancho adicional para pomo
A95: H = system height HS = glass height of sliding sash HP = profile height HZ = upper edge of door frame LS = length of track/cover profile LW = clear width (building) LWt = clear width (door passage) WS = glass width of sliding sash (with handle) WSZ = additional width of sliding sash for handle ZB = width of door frame | B95: H = Systemhöhe HS = Glashöhe Schiebeflügel HP = Profilhöhe HZ = Oberkante Zarge LS = Länge Laufschiene/Blende LW = Lichte Weite (bauseits) LWt = Lichte Weite (Durchgangsbreite) WS = Glasbreite Schiebeflügel (mit Griff) WSZ = Zusatzbreite Schiebeflügel für Griff ZB = Zargenbreite | C95: H = system height HS = glass height of sliding sash HP = profile height HZ = upper edge of door frame LS = length of track/cover profile LW = clear width (building) LWt = clear width (door passage) WS = glass width of sliding sash (with handle) WSZ = additional width of sliding sash for handle ZB = width of door frame | D95: H = hauteur du système HS = hauteur du verre du vantail coulissant HP = hauteur du profilé HZ = bord supérieur du chambranle de porte LS = longueur du rail de roulement / du capot LW = largeur d'ouverture (baie) LWt = largeur de passage WS = largeur du verre du vantail coulissant (avec poignée) WSZ = largeur supplémentaire du vantail coulissant pour poignée ZB = largeur du chambranle de porte | E95: H = altura total del sistema HS = altura de vidrio de la hoja corredera HP = altura del perfil HZ = borde superior del marco de puerta LS = longitud del riel de rodamiento/de la tapeta LW = apertura útil (edificación) LWt = apertura útil (paso de la puerta) WS = ancho de vidrio de la hoja corredera (con pomo) WSZ = ancho adicional para pomo ZB = ancho del marco de puerta
A96: H = system height HF = glass height of sidelight HS = glass height of sliding sash LS = length of track/cover profile LW = clear width (building) LWt = clear width (door passage) WF = glass width of sidelight WS = glass width of sliding sash (with handle) WFZ = additional width of sidelight WSZ = additional width of sliding sash for handle | B96: H = Systemhöhe HF = Glashöhe Festflügel HS = Glashöhe Schiebeflügel LS = Länge Laufschiene/Blende LW = Lichte Weite (bauseits) LWt = Lichte Weite (Durchgangsbreite) WF = Glasbreite Festflügel WS = Glasbreite Schiebeflügel (mit Griff) WFZ = Zusatzbreite Festflügel WSZ = Zusatzbreite Schiebeflügel für Griff | C96: H = system height HF = glass height of sidelight HS = glass height of sliding sash LS = length of track/cover profile LW = clear width (building) LWt = clear width (door passage) WF = glass width of sidelight WS = glass width of sliding sash (with handle) WFZ = additional width of sidelight WSZ = additional width of sliding sash for handle | D96: H = hauteur du système HF = hauteur du verre du vantail fixe HS = hauteur du verre du vantail coulissant LS = longueur du rail de roulement / du capot LW = largeur d'ouverture (baie) LWt = largeur de passage WF = largeur du verre du vantail fixe WS = larguer du verre du vantail coulissant (avec poignée) WFZ = largeur supplémentaire du vantail fixe WSZ = largeur supplémentaire du vantail coulissant pour poignée | E96: H = altura total del sistema HF = altura de vidrio de la hoja fija HS = altura de vidrio de la hoja corredera LS = longitud del riel de rodamiento/de la tapeta LW = apertura útil (edificación) LWt = apertura útil (paso de la puerta) WF = ancho de vidrio de la hoja fija WS = ancho de vidrio de la hoja corredera (con pomo) WFZ = ancho adicional de la hoja fija WSZ = ancho adicional para pomo
A97: =IF($B$1=$B$3,B97,IF($B$1=$C$3,C97, IF($B$1=$D$3,D97, IF($B$1=$E$3,E97,"Error!")))) -> H = system height HF = glass height of sidelight HS = glass height of sliding sash HP = profile height LS = length of track/cover profile LK = length of door stop profiles LW = clear width (building) LWt = clear width (door passage) WF = glass width of sidelight WS = glass width of sliding sash (with handle) WFZ = additional width of sidelight WSZ = additional width of sliding sash for handle | B97: H = Systemhöhe HF = Glashöhe Festflügel HS = Glashöhe Schiebeflügel HP = Höhe Profil LS = Länge Laufschiene/Blende LK = Länge Anschlag-/Schließkasten LW = Lichte Weite (bauseits) LWt = Lichte Weite (Durchgangsbreite) WF = Glasbreite Festflügel WS = Glasbreite Schiebeflügel (mit Griff) WFZ = Zusatzbreite Festflügel WSZ = Zusatzbreite Schiebeflügel für Griff | C97: H = system height HF = glass height of sidelight HS = glass height of sliding sash HP = profile height LS = length of track/cover profile LK = length of door stop profiles LW = clear width (building) LWt = clear width (door passage) WF = glass width of sidelight WS = glass width of sliding sash (with handle) WFZ = additional width of sidelight WSZ = additional width of sliding sash for handle | D97: H = hauteur du système HF = hauteur du verre du vantail fixe HS = hauteur du verre du vantail coulissant HP = hauteur du profilé LS = longueur du rail de roulement / du capot LK = longueur des profilés d'arrêt LW = largeur d'ouverture (baie) LWt = largeur de passage WF = largeur du verre du vantail fixe WS = largeur du verre du vantail coulissant (avec poignée) WFZ = largeur supplémentaire du vantail fixe WSZ = largeur supplémentaire du vantail coulissant pour poignée | E97: H = altura total del sistema HF = altura de vidrio de la hoja fija HS = altura de vidrio de la hoja corredera HP = altura del perfil LS = longitud del riel de rodamiento/de la tapeta LK = longitud de los perfiles de tope LW = apertura útil (edificación) LWt = apertura útil (paso de la puerta) WF = ancho de vidrio de la hoja fija WS = ancho de vidrio de la hoja corredera (con pomo) WFZ = ancho adicional de la hoja fija WSZ = ancho adicional para pomo
A98: 0
A99: Note | B99: Hinweis | C99: Note | D99: Remarque | E99: Nota
A100: The weight of the sliding sash (including handles) must not exceed 120 kg. The maximum height-width ratio of the sliding sash is 3:1. The minimum width of the sliding sash is 580 mm. | B100: Das Flügelgewicht des Schiebeflügels inkl. Griff darf 120 kg nicht überschreiten. Das Verhältnis von Höhe zu Breite des Schiebeflügels darf maximal 3 : 1 betragen. Der Schiebeflügel muss mindestens 580 mm breit sein. | C100: The weight of the sliding sash (including handles) must not exceed 120 kg. The maximum height-width ratio of the sliding sash is 3:1. The minimum width of the sliding sash is 580 mm. | D100: Le poid du vantail coulissant (poignée incl.) ne doit pas dépasser 120 kg. Le rapport hauteur/largeur maximal admissible du vantail coulissant est de 3 : 1. Le vantail coulissant doit avoir une largeur minimale de 580 mm. | E100: El peso de la hoja corredera (pomo incluido) no debe superar los 120 kg. La relación altura/ancho máxima permitida de la hoja corredera es de 3:1. El ancho mínimo de la hoja corredera es de 580 mm.
A101: The weight of the sliding sashes (inluding handles) must not exceed 120 kg each. The maximum height-width ratio of the sliding sashes is 3:1. The minimum width of the sliding sashes is 580 mm each. | B101: Das Flügelgewicht der Schiebeflügel inkl. Griff darf 120 kg nicht überschreiten. Das Verhältnis von Höhe zu Breite der Schiebeflügel darf maximal 3 : 1 betragen. Die Mindestbreite der Schiebeflügel darf 580 mm nicht unterschreiten. | C101: The weight of the sliding sashes (inluding handles) must not exceed 120 kg each. The maximum height-width ratio of the sliding sashes is 3:1. The minimum width of the sliding sashes is 580 mm each. | D101: Le poids des vantaux coulissants (poignées incl.) ne doit pas dépasser 120 kg chacun. Le rapport hauteur/largeur maximal admissible des vantaux coulissants est de 3 : 1. Les vvantaux coulissants doivent avoir une largeur minimale de 580 mm chacun. | E101: El peso de las hojas correderas (pomos incluidos) no debe superar los 120 kg cada uno. La relación altura/ancho máxima permitida de las hojas correderas es de 3:1. El ancho mínimo de las hojas correderas es de 580 mm cada uno.
A102: =IF($B$1=$B$3,B102,IF($B$1=$C$3,C102, IF($B$1=$D$3,D102, IF($B$1=$E$3,E102,"Error!")))) -> 0
A103: Willach will not assume any liability for any damages of any kind that might be resulting from the use of this profile and glass dimension calculator. (01.04.2021 - Rev. 0) | B103: Willach übernimmt keine Haftung für eventuelle Schäden jeglicher Art, die aus der Benutzung dieses Profil- und Glasmaßrechners entstehen könnten. (02.03.2020 - Rev. 0) | C103: Willach will not assume any liability for any damages of any kind that might be resulting from the use of this profile and glass dimension calculator. (01.04.2021 - Rev. 0) | D103: Willach n'assume aucune responsabilité pour tout dommage de quelque nature que ce soit qui pourrait résulter de l'utilisation de ce calculateur de dimensions des profilés et vantaux. (01.04.2021 - Rev. 0) | E103: Willach no asume ninguna responsabilidad por los daños de cualquier tipo que pudieran resultar del uso de este calculadora de perfiles y dimensiones. (02.03.2020 - Rev.0)
A104: 0
A105: 0
A106: 0
A107: 0
A108: 0
A109: 0
A110: 0

Sheet Übersicht
B1: =Übersetzungstabelle!$A$6 -> Portavant G 120: profile and glass dimensions calculator
D4: =Übersetzungstabelle!$A$7 -> Please select the appropriate category:
D6: =Übersetzungstabelle!$A$8 -> Installation situations without sidelight | M6: =Übersetzungstabelle!$A$9 -> Installation situations with sidelight
B8: =Übersetzungstabelle!$A$15 -> 1-sided | D8: =Übersetzungstabelle!$A$12 -> Wall/ Ceiling mounting | G8: =Übersetzungstabelle!$A$12 -> Wall/ Ceiling mounting | J8: =Übersetzungstabelle!$A$10 -> Wall mounting | M8: =Übersetzungstabelle!$A$13 -> Ceiling mounting | P8: =Übersetzungstabelle!$A$13 -> Ceiling mounting
G9: =Übersetzungstabelle!$A$14 -> with door stop profiles | J9: =Übersetzungstabelle!$A$11 -> with door frame | P9: =Übersetzungstabelle!$A$14 -> with door stop profiles
D15: =Übersetzungstabelle!$A$17 -> Select | G15: =Übersetzungstabelle!$A$17 -> Select | J15: =Übersetzungstabelle!$A$17 -> Select | M15: =Übersetzungstabelle!$A$17 -> Select | P15: =Übersetzungstabelle!$A$17 -> Select
B17: =Übersetzungstabelle!$A$16 -> 2-sided | D17: =Übersetzungstabelle!$A$12 -> Wall/ Ceiling mounting | M17: =Übersetzungstabelle!$A$13 -> Ceiling mounting
D24: =Übersetzungstabelle!$A$17 -> Select | M24: =Übersetzungstabelle!$A$17 -> Select

Sheet Wand-Decke_1-seitig
B1: =Übersetzungstabelle!$A$20 -> Portavant G 120: wall/ceiling mounting without sidelight, one-sided (without door stop profiles and without door frame)
B41: Systemmaße
C43: HSA | D43: Höhenabzugsmaß Schiebeflügel | E43: 59 | F43: (mm)
C45: UWo | D45: Überlapp Wand öffnungsseitig | E45: 35 | F45: (mm)
C47: UWs | D47: Überlapp Wand schließseitig | E47: 35 | F47: (mm)
C49: SMs | D49: Spaltmaß schließseitig | E49: 3 | F49: (mm)
C51: SMo | D51: Spaltmaß öffnungsseitig | E51: 3 | F51: (mm)
D53: Mindestbreite Schiebeflügel | E53: 580 | F53: (mm)
D55: Mindest-LW | E55: =$E$53-$E$47-$E$45 -> 510 | F55: (mm)
B59: =Übersetzungstabelle!$A$27 -> User input | H59: =Übersetzungstabelle!$A$53 -> Automatic calculation of glass dimensions and profile lengths | P59: =Übersetzungstabelle!$A$91 -> Legend
C61: LW | D61: =Übersetzungstabelle!$A$35 -> clear width (building) | E61: 1000 | F61: (mm) | I61: HS | J61: =Übersetzungstabelle!$A$57 -> glass height of sliding sash | L61: =E63-E43 -> 2191 | M61: (mm) | P61: =Übersetzungstabelle!$A$94 -> H = system height HS = glass height of sliding sash LS = length of track/cover profile LW = clear width (building) LWt = clear width (door passage) WS = glass width of sliding sash (with handle) WSZ = additional width of sliding sash for handle
E62: 5996
C63: H | D63: =Übersetzungstabelle!$A$36 -> system height | E63: 2250 | F63: (mm) | I63: WS | J63: =Übersetzungstabelle!$A$59 -> glass width of sliding sash | L63: =E61+E45+E47 -> 1070 | M63: (mm)
D65: =Übersetzungstabelle!$A$37 -> glass thickness of sliding sash | E65: 10 | F65: (mm) | I65: LS | J65: =Übersetzungstabelle!$A$61 -> length of track/cover profile | L65: =2*L63-E67-E45+E49+E51 -> 2011 | M65: (mm)
C67: WSZ | D67: =Übersetzungstabelle!$A$40 -> additional width of sliding sash for handle | E67: 100 | F67: (mm)
I68: =Übersetzungstabelle!$A$72 -> For information:
D70: =Übersetzungstabelle!$A$43 -> weight of handle | E70: 0.4 | F70: (kg) | I70: LWt | J70: =Übersetzungstabelle!$A$73 -> clear width (door passage) | L70: =E61-E67 -> 900 | M70: (mm)
B73: =Übersetzungstabelle!A$50 -> Formulas | H73: =Übersetzungstabelle!$A$80 -> Check of sash weight, height-width ratio and minimum sash width | P73: =Übersetzungstabelle!$A$99 -> Note
C76: HS = H - 59 | I76: =Übersetzungstabelle!$A$83 -> Weight of sliding sash with handle (≤ 120 kg) | K76: =L61/1000*L63/1000*2.5*ROUNDDOWN(E65,0)+E70 -> 59.00925 | L76: (kg) | M76: =IF(K76<=120,Übersetzungstabelle!$A$81,Übersetzungstabelle!$A$82) -> Okay. | P76: =Übersetzungstabelle!$A$100 -> The weight of the sliding sash (including handles) must not exceed 120 kg. The maximum height-width ratio of the sliding sash is 3:1. The minimum width of the sliding sash is 580 mm.
C78: WS = LW + 70 | I78: =IF(K76>120,Übersetzungstabelle!$A$84,"") -> 
C80: LS = 2 WS - WSZ - 29 | I80: =Übersetzungstabelle!$A$85 -> Height-width ratio of the sliding sash (≤ 3) | K80: =L61/L63 -> 2.047663551 | M80: =IF(K80<=3,Übersetzungstabelle!$A$81,Übersetzungstabelle!$A$82) -> Okay.
C82: LWt = LW - WSZ | I82: =IF(K80>3,Übersetzungstabelle!$A$87,"") -> 
I84: =Übersetzungstabelle!$A$88 -> Glass width of sliding sash (≥ 580 mm) | K84: =L63 -> 1070 | L84: (mm) | M84: =IF(K84>=580,Übersetzungstabelle!$A$81,Übersetzungstabelle!$A$82) -> Okay.
I86: =IF(K84<580,Übersetzungstabelle!$A$89,"") -> 
A90: =Übersetzungstabelle!$A$103 -> Willach will not assume any liability for any damages of any kind that might be resulting from the use of this profile and glass dimension calculator. (01.04.2021 - Rev. 0)
B92: =Übersetzungstabelle!$A$75 -> Glass dimensions of sliding sash | J92: =Übersetzungstabelle!$A$77 -> Note
C120: =Übersetzungstabelle!$A$76 -> (Glass cutouts/drillings for handles and/or mechanical locks might probably be required.)
A123: =Übersetzungstabelle!$A$103 -> Willach will not assume any liability for any damages of any kind that might be resulting from the use of this profile and glass dimension calculator. (01.04.2021 - Rev. 0)

Sheet Wand-Decke_2-seitig
B1: =Übersetzungstabelle!$A$21 -> Portavant G 120: wall/ceiling mounting without sidelight, two-sided
B41: Systemmaße
C43: HSA | D43: Höhenabzugsmaß Schiebeflügel | E43: 59 | F43: (mm)
C45: UWo | D45: Überlapp Wand öffnungsseitig | E45: 35 | F45: (mm)
C47: SMs | D47: Spaltmaß schließseitig | E47: 2 | F47: (mm)
C49: SMo | D49: Spaltmaß öffnungsseitig | E49: 3 | F49: (mm)
D51: Mindestbreite Schiebeflügel | E51: 580 | F51: (mm)
D53: Mindest-LW | E53: =2*(E51-E45+E47) -> 1094 | F53: (mm)
B56: =Übersetzungstabelle!$A$27 -> User input | H56: =Übersetzungstabelle!$A$53 -> Automatic calculation of glass dimensions and profile lengths | P56: =Übersetzungstabelle!$A$91 -> Legend
L58: =Übersetzungstabelle!$A$54 -> Length in mm | M58: =Übersetzungstabelle!$A$55 -> Qty. in pcs.
C60: LW | D60: =Übersetzungstabelle!$A$35 -> clear width (building) | E60: 2000 | F60: (mm) | I60: HS | J60: =Übersetzungstabelle!$A$57 -> glass height of sliding sash | L60: =E62-E43 -> 2191 | P60: =Übersetzungstabelle!$A$94 -> H = system height HS = glass height of sliding sash LS = length of track/cover profile LW = clear width (building) LWt = clear width (door passage) WS = glass width of sliding sash (with handle) WSZ = additional width of sliding sash for handle
C62: H | D62: =Übersetzungstabelle!$A$36 -> system height | E62: 2250 | F62: (mm) | I62: WS | J62: =Übersetzungstabelle!$A$59 -> glass width of sliding sash | L62: =E60/2+(E45-E47) -> 1033 | M62: 2
D64: =Übersetzungstabelle!$A$37 -> glass thickness of sliding sash | E64: 10 | F64: (mm) | I64: LS | J64: =Übersetzungstabelle!$A$61 -> length of track/cover profile | L64: =IF((4*L62-2*E66-E45*2+2*E47+2*E49)>5996,(4*L62-2*E66-E45*2+2*E47+2*E49)/2,4*L62-2*E66-E45*2+2*E47+2*E49) -> 3872 | M64: =IF((4*L62-2*E66-E45*2+2*E47+2*E49)>5996,Übersetzungstabelle!$A$56&" 2",Übersetzungstabelle!$A$56&" 1") -> per 1
C66: WSZ | D66: =Übersetzungstabelle!$A$40 -> additional width of sliding sash for handle | E66: 100 | F66: (mm)
I67: =Übersetzungstabelle!$A$72 -> For information:
D69: =Übersetzungstabelle!$A$43 -> weight of handle | E69: 0.4 | F69: (kg) | I69: LWt | J69: =Übersetzungstabelle!$A$73 -> clear width (door passage) | L69: =E60-2*E66 -> 1800
B72: =Übersetzungstabelle!$A$50 -> Formulas | H72: =Übersetzungstabelle!$A$80 -> Check of sash weight, height-width ratio and minimum sash width | P72: =Übersetzungstabelle!$A$99 -> Note
C75: HS = H - 59 | I75: =Übersetzungstabelle!$A$83 -> Weight of sliding sash with handle (≤ 120 kg) | K75: =L62/1000*L60/1000*(ROUNDDOWN(E64,0))*2.5+E69 -> 56.982575 | L75: (kg) | M75: =IF(K75<=120,Übersetzungstabelle!$A$81,Übersetzungstabelle!$A$82) -> Okay. | P75: =Übersetzungstabelle!$A$101 -> The weight of the sliding sashes (inluding handles) must not exceed 120 kg each. The maximum height-width ratio of the sliding sashes is 3:1. The minimum width of the sliding sashes is 580 mm each.
C77: WS = LW / 2 + 33 | I77: =IF(K75>120,Übersetzungstabelle!$A$84,"") -> 
C79: LS = 4 WS - 2 WSZ - 60 | I79: =Übersetzungstabelle!$A$86 -> Height-width ratio of the sliding sashes (≤ 3) | K79: =L60/L62 -> 2.121006776 | M79: =IF(K79<=3,Übersetzungstabelle!$A$81,Übersetzungstabelle!$A$82) -> Okay.
C81: LWt = LW - 2 WSZ | I81: =IF(K79>3,Übersetzungstabelle!$A$87,"") -> 
I83: =Übersetzungstabelle!$A$88 -> Glass width of sliding sash (≥ 580 mm) | K83: =L62 -> 1033 | L83: (mm) | M83: =IF(K83>=580,Übersetzungstabelle!$A$81,Übersetzungstabelle!$A$82) -> Okay.
I84: =IF(K83<580,Übersetzungstabelle!A89,"") -> 
I85: =IF($K$83<580,Übersetzungstabelle!$A$89,"") -> 
A89: =Übersetzungstabelle!$A$103 -> Willach will not assume any liability for any damages of any kind that might be resulting from the use of this profile and glass dimension calculator. (01.04.2021 - Rev. 0)
B91: =Übersetzungstabelle!$A$75 -> Glass dimensions of sliding sash | J91: =Übersetzungstabelle!$A$77 -> Note | L91: =Übersetzungstabelle!$A$75 -> Glass dimensions of sliding sash
C119: =Übersetzungstabelle!$A$76 -> (Glass cutouts/drillings for handles and/or mechanical locks might probably be required.) | L119: =Übersetzungstabelle!$A$76 -> (Glass cutouts/drillings for handles and/or mechanical locks might probably be required.)
A122: =Übersetzungstabelle!$A$103 -> Willach will not assume any liability for any damages of any kind that might be resulting from the use of this profile and glass dimension calculator. (01.04.2021 - Rev. 0)

Sheet Decke_1-seitig_Festflügel
B1: =Übersetzungstabelle!$A$22 -> Portavant G 120: ceiling mounting with sidelight, one-sided (without door stop profiles)
B40: Systemmaße
C42: HSA | D42: Höhenabzugsmaß Schiebeflügel | E42: 59 | F42: (mm)
C44: HFA | D44: Höhenabzugsmaß Festflügel | E44: 61 | F44: (mm)
C46: WFA | D46: Abzugsmaß Wandbefestigung | E46: 0 | F46: (mm)
C48: UF | D48: Überlapp Festflügel | E48: 35 | F48: (mm)
C50: SMs | D50: Spaltmaß schließseitig | E50: 3 | F50: (mm)
C52: SMo | D52: Spaltmaß öffnungsseitig | E52: 3 | F52: (mm)
B55: =Übersetzungstabelle!$A$27 -> User input | H55: =Übersetzungstabelle!$A$53 -> Automatic calculation of glass dimensions and profile lengths | P55: =Übersetzungstabelle!$A$91 -> Legend
C57: LW | D57: =Übersetzungstabelle!$A$35 -> clear width (building) | E57: 2000 | F57: (mm) | I57: HS | J57: =Übersetzungstabelle!$A$57 -> glass height of sliding sash | L57: =$E$59-$E$42 -> 2191 | M57: (mm) | P57: =Übersetzungstabelle!$A$96 -> H = system height HF = glass height of sidelight HS = glass height of sliding sash LS = length of track/cover profile LW = clear width (building) LWt = clear width (door passage) WF = glass width of sidelight WS = glass width of sliding sash (with handle) WFZ = additional width of sidelight WSZ = additional width of sliding sash for handle
C59: H | D59: =Übersetzungstabelle!$A$36 -> system height | E59: 2250 | F59: (mm) | I59: HF | J59: =Übersetzungstabelle!$A$58 -> glass height of sidelight | L59: =$E$59-$E$44 -> 2189 | M59: (mm)
D61: =Übersetzungstabelle!$A$37 -> glass thickness of sliding sash | E61: 10 | F61: (mm) | I61: WS | J61: =Übersetzungstabelle!$A$59 -> glass width of sliding sash | L61: =0.5*(E57-E68+E65+E48-E50) -> 1064.5 | M61: (mm)
D63: =Übersetzungstabelle!$A$39 -> glass thickness of sidelight | E63: 10 | F63: (mm) | I63: WF | J63: =Übersetzungstabelle!$A$60 -> glass width of sidelight | L63: =$L$61-$E$65+$E$68-$E$46 -> 967.5 | M63: (mm)
C65: WSZ | D65: =Übersetzungstabelle!$A$40 -> additional width of sliding sash for handle | E65: 100 | F65: (mm) | I65: LS | J65: =Übersetzungstabelle!A61 -> length of track/cover profile | L65: =E57 -> 2000 | M65: (mm)
C68: WFZ | D68: =Übersetzungstabelle!$A$42 -> additional width of sidelight (≥ 3 mm) | E68: 3 | F68: (mm) | J68: =Übersetzungstabelle!$A$64 -> length of infill profile | L68: =$E$57-$L$63-$E$46 -> 1032.5 | M68: (mm)
D71: =Übersetzungstabelle!$A$43 -> weight of handle | E71: 0.4 | F71: (kg) | J71: =Übersetzungstabelle!$A$65 -> length of floor-wall profile on the floor | L71: =IF($F$73=0,0,$L$63) -> 967.5 | M71: (mm)
C73: =Übersetzungstabelle!$A$44 -> Would you like to use a floor-wall profile (U profile) horizontally on the floor? | E73: Yes | F73: =IF($E$73=Übersetzungstabelle!$A$47,1,0) -> 1 | J73: =Übersetzungstabelle!$A$67 -> length of floor-wall profile on the wall | L73: =IF($F$77=0,0,IF($F$73=0,$E$59-69,$E$59-69-16)) -> 2165 | M73: (mm)
J75: =Übersetzungstabelle!$A$69 -> approx. length of silicone gasket type 1 (item no. 617 254…) | L75: =IF(ROUNDDOWN($E$63,0)=10,$L$63,0) -> 967.5 | M75: (mm)
C77: =Übersetzungstabelle!$A$45 -> Would you like to use a floor-wall profile (U profile) vertically to attach the sidelight to the wall? | E77: Yes | F77: =IF($E$77=Übersetzungstabelle!$A$47,1,0) -> 1 | J77: =Übersetzungstabelle!$A$70 -> approx. length of silicone gasket type 2 (item no. 617 255…) | L77: =IF(ROUNDDOWN($E$63,0)=10,($L$73+$L$71)*2,0) -> 6265 | M77: (mm)
J79: =Übersetzungstabelle!$A$71 -> approx. length of silicone gasket type 3 (item no. 617 256…) | L79: =IF(ROUNDDOWN($E$63,0)=12,($L$73+$L$71)*2+$L$63,0) -> 0 | M79: (mm)
F80: =IF($E$73=Übersetzungstabelle!$A$47,1,0) -> 1
I81: =Übersetzungstabelle!$A$72 -> For information:
I83: LWt | J83: =Übersetzungstabelle!$A$73 -> clear width (door passage) | L83: =$E$57-$L$63-$E$65-$E$46 -> 932.5 | M83: (mm)
B86: =Übersetzungstabelle!A50 -> Formulas | H86: =Übersetzungstabelle!$A$80 -> Check of sash weight, height-width ratio and minimum sash width | P86: =Übersetzungstabelle!$A$99 -> Note
C89: HS = H - 59 | I89: =Übersetzungstabelle!$A$83 -> Weight of sliding sash with handle (≤ 120 kg) | K89: =$L$57/1000*$L$61/1000*2.5*ROUNDDOWN($E$61,0)+$E$71 -> 58.7079875 | L89: (kg) | M89: =IF($K$89<=120,Übersetzungstabelle!$A$81,Übersetzungstabelle!$A$82) -> Okay. | P89: =Übersetzungstabelle!$A$100 -> The weight of the sliding sash (including handles) must not exceed 120 kg. The maximum height-width ratio of the sliding sash is 3:1. The minimum width of the sliding sash is 580 mm.
C91: HF = H - 61 | I91: =IF(K89>120,Übersetzungstabelle!$A$84,"") -> 
C93: WS = (LW - WFZ + WSZ + 32) / 2 | I93: =Übersetzungstabelle!$A$85 -> Height-width ratio of the sliding sash (≤ 3) | K93: =$L$57/$L$61 -> 2.058243307 | M93: =IF($K$93<=3,Übersetzungstabelle!$A$81,Übersetzungstabelle!$A$82) -> Okay.
C95: WF = WFZ + WS - WSZ | I95: =IF(K93>3,Übersetzungstabelle!$A$87,"") -> 
C97: LS = LW | I97: =Übersetzungstabelle!$A$88 -> Glass width of sliding sash (≥ 580 mm) | K97: =$L$61 -> 1064.5 | L97: (mm) | M97: =IF($K$97>=580,Übersetzungstabelle!$A$81,Übersetzungstabelle!$A$82) -> Okay.
C99: LWt = LW - WF - WSZ | I99: =IF(K97<580,Übersetzungstabelle!$A$89,"") -> 
A103: =Übersetzungstabelle!$A$103 -> Willach will not assume any liability for any damages of any kind that might be resulting from the use of this profile and glass dimension calculator. (01.04.2021 - Rev. 0)
B105: =Übersetzungstabelle!$A$75 -> Glass dimensions of sliding sash | J105: =Übersetzungstabelle!$A$77 -> Note | L105: =Übersetzungstabelle!$A$78 -> Glass dimensions of sidelight
C133: =Übersetzungstabelle!$A$76 -> (Glass cutouts/drillings for handles and/or mechanical locks might probably be required.)
A136: =Übersetzungstabelle!$A$103 -> Willach will not assume any liability for any damages of any kind that might be resulting from the use of this profile and glass dimension calculator. (01.04.2021 - Rev. 0)

Sheet Decke_2-seitig_Festflügel
B1: =Übersetzungstabelle!$A$23 -> Portavant G 120: ceiling mounting with sidelight, two-sided
B40: Systemmaße
C42: HSA | D42: Höhenabzugsmaß Schiebeflügel | E42: 59 | F42: (mm)
C44: HFA | D44: Höhenabzugsmaß Festflügel | E44: 61 | F44: (mm)
C46: WFA | D46: Abzugsmaß Wandbefestigung | E46: 0 | F46: (mm)
C48: UF | D48: Überlapp Festflügel | E48: 35 | F48: (mm)
C50: SMs | D50: Spaltmaß schließseitig | E50: 2 | F50: (mm)
C52: SMo | D52: Spaltmaß öffnungsseitig | E52: 3 | F52: (mm)
B55: =Übersetzungstabelle!$A$27 -> User input | H55: =Übersetzungstabelle!$A$53 -> Automatic calculation of glass dimensions and profile lengths | P55: =Übersetzungstabelle!$A$91 -> Legend
L57: =Übersetzungstabelle!$A$54 -> Length in mm | M57: =Übersetzungstabelle!$A$55 -> Qty. in pcs.
C59: LW | D59: =Übersetzungstabelle!$A$35 -> clear width (building) | E59: 4000 | F59: (mm) | I59: HS | J59: =Übersetzungstabelle!$A$57 -> glass height of sliding sash | L59: =E61-E42 -> 2141 | P59: =Übersetzungstabelle!$A$96 -> H = system height HF = glass height of sidelight HS = glass height of sliding sash LS = length of track/cover profile LW = clear width (building) LWt = clear width (door passage) WF = glass width of sidelight WS = glass width of sliding sash (with handle) WFZ = additional width of sidelight WSZ = additional width of sliding sash for handle
C61: H | D61: =Übersetzungstabelle!$A$36 -> system height | E61: 2200 | F61: (mm) | I61: HF | J61: =Übersetzungstabelle!$A$58 -> glass height of sidelight | L61: =E61-E44 -> 2139
D63: =Übersetzungstabelle!$A$37 -> glass thickness of sliding sash | E63: 10 | F63: (mm) | I63: WS | J63: =Übersetzungstabelle!$A$59 -> glass width of sliding sash | L63: =(E59+2*(E67-E70+E48-E50))/4 -> 1065 | M63: 2
M64: 2
D65: =Übersetzungstabelle!$A$39 -> glass thickness of sidelight | E65: 10 | F65: (mm) | I65: WF | J65: =Übersetzungstabelle!$A$60 -> glass width of sidelight | L65: =$L$63-$E$67+$E$70-$E$46 -> 968 | M65: 2
C67: WSZ | D67: =Übersetzungstabelle!$A$40 -> additional width of sliding sash for handle | E67: 100 | F67: (mm) | I67: LS | J67: =Übersetzungstabelle!A61 -> length of track/cover profile | L67: =IF(E59>5996,E59/2,E59) -> 4000 | M67: =IF(E59>5996,Übersetzungstabelle!$A$56&" 2",Übersetzungstabelle!$A$56&" 1") -> per 1
C70: WFZ | D70: =Übersetzungstabelle!$A$42 -> additional width of sidelight (≥ 3 mm) | E70: 3 | F70: (mm) | J70: =Übersetzungstabelle!$A$64 -> length of infill profile | L70: =IF(($E$59-2*$L$65-$E$46)>2996,($E$59-2*$L$65-$E$46)/2,$E$59-2*$L$65-$E$46) -> 2064 | M70: =IF(($E$59-2*$L$65-$E$46)>2996,2,1) -> 1
M72: 1
D73: =Übersetzungstabelle!$A$43 -> weight of handle | E73: 0.4 | F73: (kg) | J73: =Übersetzungstabelle!$A$66 -> lengths of floor-wall profiles on the floor | L73: =IF($F$75=0,0,$L$65) -> 968 | M73: =IF($F$75=0,"",2) -> 2
M74: 2
C75: =Übersetzungstabelle!$A$44 -> Would you like to use a floor-wall profile (U profile) horizontally on the floor? | E75: Yes | F75: =IF(E75=Übersetzungstabelle!$A$47,1,0) -> 1 | J75: =Übersetzungstabelle!$A$68 -> lengths of floor-wall profiles on the wall | L75: =IF($F$79=0,0,IF($F$75=0,$E$61-69,$E$61-69-16)) -> 2115 | M75: =IF($F$79=0,"",2) -> 2
J77: =Übersetzungstabelle!$A$69 -> approx. length of silicone gasket type 1 (item no. 617 254…) | L77: =IF(ROUNDDOWN($E$65,0)=10,2*$L$65,0) -> 1936
C79: =Übersetzungstabelle!$A$46 -> Would you like to use a floor-wall profile (U profile) vertically to attach the sidelights to the wall? | E79: Yes | F79: =IF(E79=Übersetzungstabelle!$A$47,1,0) -> 1 | J79: =Übersetzungstabelle!$A$70 -> approx. length of silicone gasket type 2 (item no. 617 255…) | L79: =IF(ROUNDDOWN($E$65,0)=10,4*($L$75+$L$73),0) -> 12332
J81: =Übersetzungstabelle!$A$71 -> approx. length of silicone gasket type 3 (item no. 617 256…) | L81: =IF(ROUNDDOWN($E$65,0)=12,4*($L$75+$L$73)+2*$L$65,0) -> 0
F82: =IF($E$76=Übersetzungstabelle!$A$47,1,0) -> 0
I83: =Übersetzungstabelle!$A$72 -> For information:
I85: LWt | J85: =Übersetzungstabelle!$A$73 -> clear width (door passage) | L85: =$E$59-2*($L$65+$E$67) -> 1864
B88: =Übersetzungstabelle!$A$50 -> Formulas | H88: =Übersetzungstabelle!$A$80 -> Check of sash weight, height-width ratio and minimum sash width | P88: =Übersetzungstabelle!$A$99 -> Note
C91: HS = H - 59 | I91: =Übersetzungstabelle!$A$83 -> Weight of sliding sash with handle (≤ 120 kg) | K91: =L59/1000*L63/1000*2.5*ROUNDDOWN(E63,0)+E73 -> 57.404125 | L91: (kg) | M91: =IF(K91<=120,Übersetzungstabelle!$A$81,Übersetzungstabelle!$A$82) -> Okay. | P91: =Übersetzungstabelle!$A$100 -> The weight of the sliding sash (including handles) must not exceed 120 kg. The maximum height-width ratio of the sliding sash is 3:1. The minimum width of the sliding sash is 580 mm.
C93: HF = H - 61 | I93: =IF(K91>120,Übersetzungstabelle!A84,"") -> 
C95: WS = (LW - 2 WFZ + 2 WSZ + 66) / 4 | I95: =Übersetzungstabelle!$A$86 -> Height-width ratio of the sliding sashes (≤ 3) | K95: =L59/L63 -> 2.010328638 | M95: =IF(K95<=3,Übersetzungstabelle!$A$81,Übersetzungstabelle!$A$82) -> Okay.
C97: WF = WFZ + WS - WSZ | I97: =IF(K95>3,Übersetzungstabelle!A87,"") -> 
C99: LS = LW | I99: =Übersetzungstabelle!$A$88 -> Glass width of sliding sash (≥ 580 mm) | K99: =L63 -> 1065 | L99: (mm) | M99: =IF(K99>=580,Übersetzungstabelle!$A$81,Übersetzungstabelle!$A$82) -> Okay.
C101: LWt = LW - 2 WF - 2 WSZ | I101: =IF(K99<580,Übersetzungstabelle!A89,"") -> 
A105: =Übersetzungstabelle!$A$103 -> Willach will not assume any liability for any damages of any kind that might be resulting from the use of this profile and glass dimension calculator. (01.04.2021 - Rev. 0)
B107: =Übersetzungstabelle!$A$75 -> Glass dimensions of sliding sash | J107: =Übersetzungstabelle!$A$77 -> Note | L107: =Übersetzungstabelle!$A$78 -> Glass dimensions of sidelight
C133: =Übersetzungstabelle!$A$76 -> (Glass cutouts/drillings for handles and/or mechanical locks might probably be required.)
C160: =Übersetzungstabelle!$A$76 -> (Glass cutouts/drillings for handles and/or mechanical locks might probably be required.)
A163: =Übersetzungstabelle!$A$103 -> Willach will not assume any liability for any damages of any kind that might be resulting from the use of this profile and glass dimension calculator. (01.04.2021 - Rev. 0)

Sheet Wand_mit_Zarge_1-seitig
B1: =Übersetzungstabelle!$A$19 -> Portavant G 120 : wall mounting with door frame, one-sided (without door stop profiles)
B41: Systemmaße
C43: HSA | D43: Höhenabzugsmaß Schiebeflügel | E43: 59 | F43: (mm)
C45: UWo | D45: Überlapp Wand öffnungsseitig | E45: 35 | F45: (mm)
C47: UWs | D47: Überlapp Wand schließseitig | E47: 35 | F47: (mm)
C49: SMs | D49: Spaltmaß schließseitig | E49: 3 | F49: (mm)
C51: SMo | D51: Spaltmaß öffnungsseitig | E51: 3 | F51: (mm)
D53: Mindestbreite Schiebeflügel | E53: 580 | F53: (mm)
D55: Mindest-LW | E55: =$E$53-$E$47-$E$45 -> 510 | F55: (mm)
B59: =Übersetzungstabelle!$A$27 -> User input | H59: =Übersetzungstabelle!$A$53 -> Automatic calculation of glass dimensions and profile lengths | P59: =Übersetzungstabelle!$A$91 -> Legend
C61: LW | D61: =Übersetzungstabelle!$A$35 -> clear width (building) | E61: 1000 | F61: (mm) | I61: HS | J61: =Übersetzungstabelle!$A$57 -> glass height of sliding sash | L61: =E63-E43 -> 2191 | M61: (mm) | P61: =Übersetzungstabelle!$A$95 -> H = system height HS = glass height of sliding sash HP = profile height HZ = upper edge of door frame LS = length of track/cover profile LW = clear width (building) LWt = clear width (door passage) WS = glass width of sliding sash (with handle) WSZ = additional width of sliding sash for handle ZB = width of door frame
C63: H | D63: =Übersetzungstabelle!$A$36 -> system height | E63: 2250 | F63: (mm) | I63: WS | J63: =Übersetzungstabelle!$A$59 -> glass width of sliding sash | L63: =E61+E45+E47 -> 1070 | M63: (mm)
C64: 0
D65: =Übersetzungstabelle!$A$37 -> glass thickness of sliding sash | E65: 10 | F65: (mm) | I65: LS | J65: =Übersetzungstabelle!$A$62 -> length of track/cover/spacer profile(s) | L65: =2*L63-E69-E45-E47+E51+E67 -> 2011 | M65: (mm)
C66: 0
C67: ZB | D67: =Übersetzungstabelle!$A$38 -> width of door frame | E67: 38 | F67: (mm)
C69: WSZ | D69: =Übersetzungstabelle!$A$40 -> additional width of sliding sash for handle | E69: 100 | F69: (mm)
I70: =Übersetzungstabelle!$A$72 -> For information:
D72: =Übersetzungstabelle!$A$43 -> weight of handle | E72: 0.4 | F72: (kg) | I72: LWt | J72: =Übersetzungstabelle!$A$73 -> clear width (door passage) | L72: =E61-E69 -> 900 | M72: (mm)
B75: =Übersetzungstabelle!A$50 -> Formulas | H75: =Übersetzungstabelle!$A$80 -> Check of sash weight, height-width ratio and minimum sash width | P75: =Übersetzungstabelle!$A$99 -> Note
C78: HS = H - 59 | I78: =Übersetzungstabelle!$A$83 -> Weight of sliding sash with handle (≤ 120 kg) | K78: =L61/1000*L63/1000*2.5*ROUNDDOWN(E65,0)+E72 -> 59.00925 | L78: (kg) | M78: =IF(K78<=120,Übersetzungstabelle!$A$81,Übersetzungstabelle!$A$82) -> Okay. | P78: =Übersetzungstabelle!$A$100 -> The weight of the sliding sash (including handles) must not exceed 120 kg. The maximum height-width ratio of the sliding sash is 3:1. The minimum width of the sliding sash is 580 mm.
C80: WS = LW + 70 | I80: =IF(K78>120,Übersetzungstabelle!$A$84,"") -> 
C82: LS = 2 WS - WSZ - 67 + ZB | I82: =Übersetzungstabelle!$A$85 -> Height-width ratio of the sliding sash (≤ 3) | K82: =L61/L63 -> 2.047663551 | M82: =IF(K82<=3,Übersetzungstabelle!$A$81,Übersetzungstabelle!$A$82) -> Okay.
C84: LWt = LW - WSZ | I84: =IF(K82>3,Übersetzungstabelle!$A$87,"") -> 
C86: =Übersetzungstabelle!A$51 -> (The planning criteria to determine the number of spacer profiles required can be found in the article/price list.) | I86: =Übersetzungstabelle!$A$88 -> Glass width of sliding sash (≥ 580 mm) | K86: =L63 -> 1070 | L86: (mm) | M86: =IF(K86>=580,Übersetzungstabelle!$A$81,Übersetzungstabelle!$A$82) -> Okay.
I88: =IF(K86<580,Übersetzungstabelle!$A$89,"") -> 
A92: =Übersetzungstabelle!$A$103 -> Willach will not assume any liability for any damages of any kind that might be resulting from the use of this profile and glass dimension calculator. (01.04.2021 - Rev. 0)
B94: =Übersetzungstabelle!$A$75 -> Glass dimensions of sliding sash | J94: =Übersetzungstabelle!$A$77 -> Note
C122: =Übersetzungstabelle!$A$76 -> (Glass cutouts/drillings for handles and/or mechanical locks might probably be required.)
A125: =Übersetzungstabelle!$A$103 -> Willach will not assume any liability for any damages of any kind that might be resulting from the use of this profile and glass dimension calculator. (01.04.2021 - Rev. 0)

Sheet Wand-Decke_1-seitig_Schliessk
B1: =Übersetzungstabelle!$A$24 -> Portavant G 120: wall mounting, one-sided with door stop profiles
B41: Systemmaße
C43: HSA | D43: Höhenabzugsmaß Schiebeflügel | E43: 59 | F43: (mm)
C45: HP | D45: Höhe Profil | E45: 69 | F45: (mm)
C47: UWo | D47: Überlapp Wand öffnungsseitig | E47: 35 | F47: (mm)
C49: UWs | D49: Überlapp Wand schließseitig (PROFIL) | E49: 40 | F49: (mm)
C51: SMs | D51: Spaltmaß schließseitig | E51: 3 | F51: (mm)
C53: SMo | D53: Spaltmaß öffnungsseitig | E53: 3 | F53: (mm)
D55: Mindestbreite Schiebeflügel | E55: 580 | F55: (mm)
D57: Mindest-LW | E57: =$E$55-$E$47 -> 545 | F57: (mm)
B60: =Übersetzungstabelle!$A$27 -> User input | H60: =Übersetzungstabelle!$A$53 -> Automatic calculation of glass dimensions and profile lengths | P60: =Übersetzungstabelle!$A$91 -> Legend
C62: LW | D62: =Übersetzungstabelle!$A$35 -> clear width (building) | E62: 1000 | F62: (mm) | I62: HS | J62: =Übersetzungstabelle!$A$57 -> glass height of sliding sash | L62: =E64-E43 -> 2141 | M62: (mm) | P62: =Übersetzungstabelle!$A$92 -> H = system height HS = glass height of sliding sash HP = profile height LS = length of track/cover profile LK = length of door stop profiles LW = clear width (building) LWt = clear width (door passage) WS = glass width of sliding sash (with handle) WSZ = additional width of sliding sash for handle
C64: H | D64: =Übersetzungstabelle!$A$36 -> system height | E64: 2200 | F64: (mm) | I64: WS | J64: =Übersetzungstabelle!$A$59 -> glass width of sliding sash | L64: =E62+E47 -> 1035 | M64: (mm)
D66: =Übersetzungstabelle!$A$37 -> glass thickness of sliding sash | E66: 10 | F66: (mm) | I66: LS | J66: =Übersetzungstabelle!$A$61 -> length of track/cover profile | L66: =2*L64-E47-E68+E53+E49 -> 1978 | M66: (mm)
C68: WSZ | D68: =Übersetzungstabelle!$A$40 -> additional width of sliding sash for handle | E68: 100 | F68: (mm) | I68: LK | J68: =Übersetzungstabelle!$A$63 -> length of door stop profiles | L68: =E64-E45 -> 2131 | M68: (mm)
D71: =Übersetzungstabelle!$A$43 -> weight of handle | E71: 0.4 | F71: (kg) | I71: =Übersetzungstabelle!$A$72 -> For information:
I73: LWt | J73: =Übersetzungstabelle!$A$73 -> clear width (door passage) | L73: =E62-E68 -> 900 | M73: (mm)
B76: =Übersetzungstabelle!A$50 -> Formulas | H76: =Übersetzungstabelle!$A$80 -> Check of sash weight, height-width ratio and minimum sash width | P76: =Übersetzungstabelle!$A$99 -> Note
C79: HS = H - 59 | I79: =Übersetzungstabelle!$A$83 -> Weight of sliding sash with handle (≤ 120 kg) | K79: =L62/1000*L64/1000*2.5*ROUNDDOWN(E66,0)+E71 -> 55.798375 | L79: (kg) | M79: =IF(K79<=120,Übersetzungstabelle!$A$81,Übersetzungstabelle!$A$82) -> Okay. | P79: =Übersetzungstabelle!$A$100 -> The weight of the sliding sash (including handles) must not exceed 120 kg. The maximum height-width ratio of the sliding sash is 3:1. The minimum width of the sliding sash is 580 mm.
C81: WS = LW + 35 | I81: =IF(K79>120,Übersetzungstabelle!$A$84,"") -> 
C83: LS = 2 WS - WSZ + 8 | I83: =Übersetzungstabelle!$A$85 -> Height-width ratio of the sliding sash (≤ 3) | K83: =L62/L64 -> 2.068599034 | M83: =IF(K83<=3,Übersetzungstabelle!$A$81,Übersetzungstabelle!$A$82) -> Okay.
C85: LWt = LW - WSZ | I85: =IF(K83>3,Übersetzungstabelle!$A$87,"") -> 
I87: =Übersetzungstabelle!$A$88 -> Glass width of sliding sash (≥ 580 mm) | K87: =L64 -> 1035 | L87: (mm) | M87: =IF(K87>=580,Übersetzungstabelle!$A$81,Übersetzungstabelle!$A$82) -> Okay.
I89: =IF(K87<580,Übersetzungstabelle!$A$89,"") -> 
A93: =Übersetzungstabelle!$A$103 -> Willach will not assume any liability for any damages of any kind that might be resulting from the use of this profile and glass dimension calculator. (01.04.2021 - Rev. 0)
B95: =Übersetzungstabelle!$A$75 -> Glass dimensions of sliding sash | J95: =Übersetzungstabelle!$A$77 -> Note
C123: =Übersetzungstabelle!$A$76 -> (Glass cutouts/drillings for handles and/or mechanical locks might probably be required.)
A126: =Übersetzungstabelle!$A$103 -> Willach will not assume any liability for any damages of any kind that might be resulting from the use of this profile and glass dimension calculator. (01.04.2021 - Rev. 0)

Sheet Decke_1-seitig_Schliessk
B1: =Übersetzungstabelle!$A$25 -> Portavant G 120: ceiling mounting with sidelight, one-sided with door stop profiles
B40: Systemmaße
C42: HSA | D42: Höhenabzugsmaß Schiebeflügel | E42: 59 | F42: (mm)
C44: HFA | D44: Höhenabzugsmaß Festflügel | E44: 61 | F44: (mm)
C46: HP | D46: Höhe Profil | E46: 69 | F46: (mm)
C48: WFA | D48: Abzugsmaß Wandbefestigung | E48: 0 | F48: (mm)
C50: UF | D50: Überlapp Festflügel | E50: 35 | F50: (mm)
C52: SMs | D52: Spaltmaß schließseitig | E52: 40 | F52: (mm)
C54: SMo | D54: Spaltmaß öffnungsseitig | E54: 3 | F54: (mm)
B57: =Übersetzungstabelle!$A$27 -> User input | H57: =Übersetzungstabelle!$A$53 -> Automatic calculation of glass dimensions and profile lengths | P57: =Übersetzungstabelle!$A$91 -> Legend
C59: LW | D59: =Übersetzungstabelle!$A$35 -> clear width (building) | E59: 2000 | F59: (mm) | I59: HS | J59: =Übersetzungstabelle!$A$57 -> glass height of sliding sash | L59: =$E$61-$E$42 -> 2141 | M59: (mm) | P59: =Übersetzungstabelle!$A$97 -> H = system height HF = glass height of sidelight HS = glass height of sliding sash HP = profile height LS = length of track/cover profile LK = length of door stop profiles LW = clear width (building) LWt = clear width (door passage) WF = glass width of sidelight WS = glass width of sliding sash (with handle) WFZ = additional width of sidelight WSZ = additional width of sliding sash for handle
C61: H | D61: =Übersetzungstabelle!$A$36 -> system height | E61: 2200 | F61: (mm) | I61: HF | J61: =Übersetzungstabelle!$A$58 -> glass height of sidelight | L61: =$E$61-$E$44 -> 2139 | M61: (mm)
D63: =Übersetzungstabelle!$A$37 -> glass thickness of sliding sash | E63: 10 | F63: (mm) | I63: WS | J63: =Übersetzungstabelle!$A$59 -> glass width of sliding sash | L63: =0.5*(E59-E70+E67+E50-E52) -> 1046 | M63: (mm)
D65: =Übersetzungstabelle!$A$39 -> glass thickness of sidelight | E65: 10 | F65: (mm) | I65: WF | J65: =Übersetzungstabelle!$A$60 -> glass width of sidelight | L65: =$L$63-$E$67+$E$70-$E$48 -> 949 | M65: (mm)
C67: WSZ | D67: =Übersetzungstabelle!$A$40 -> additional width of sliding sash for handle | E67: 100 | F67: (mm) | I67: LS | J67: =Übersetzungstabelle!A61 -> length of track/cover profile | L67: =E59 -> 2000 | M67: (mm)
C70: WFZ | D70: =Übersetzungstabelle!$A$42 -> additional width of sidelight (≥ 3 mm) | E70: 3 | F70: (mm) | I70: LK | J70: =Übersetzungstabelle!$A$63 -> length of door stop profiles | L70: =E61-E46 -> 2131 | M70: (mm)
D73: =Übersetzungstabelle!$A$43 -> weight of handle | E73: 0.4 | F73: (kg) | J73: =Übersetzungstabelle!$A$64 -> length of infill profile | L73: =$E$59-$L$65-$E$48 -> 1051 | M73: (mm)
C75: =Übersetzungstabelle!$A$44 -> Would you like to use a floor-wall profile (U profile) horizontally on the floor? | E75: Yes | J75: =Übersetzungstabelle!$A$65 -> length of floor-wall profile on the floor | L75: =IF($F$77=0,0,$L$65) -> 949 | M75: (mm)
F77: =IF($E$75=Übersetzungstabelle!$A$47,1,0) -> 1 | J77: =Übersetzungstabelle!$A$67 -> length of floor-wall profile on the wall | L77: =IF($F$81=0,0,IF($F$77=0,$E$61-69,$E$61-69-16)) -> 2115 | M77: (mm)
C79: =Übersetzungstabelle!$A$45 -> Would you like to use a floor-wall profile (U profile) vertically to attach the sidelight to the wall? | E79: Yes | J79: =Übersetzungstabelle!$A$69 -> approx. length of silicone gasket type 1 (item no. 617 254…) | L79: =IF(ROUNDDOWN($E$65,0)=10,$L$65,0) -> 949 | M79: (mm)
F81: =IF($E$79=Übersetzungstabelle!$A$47,1,0) -> 1 | J81: =Übersetzungstabelle!$A$70 -> approx. length of silicone gasket type 2 (item no. 617 255…) | L81: =IF(ROUNDDOWN($E$65,0)=10,($L$77+$L$75)*2,0) -> 6128 | M81: (mm)
J83: =Übersetzungstabelle!$A$71 -> approx. length of silicone gasket type 3 (item no. 617 256…) | L83: =IF(ROUNDDOWN($E$65,0)=12,($L$77+$L$75)*2+$L$65,0) -> 0 | M83: (mm)
F84: =IF($E$75=Übersetzungstabelle!$A$47,1,0) -> 1
I85: =Übersetzungstabelle!$A$72 -> For information:
I87: LWt | J87: =Übersetzungstabelle!$A$73 -> clear width (door passage) | L87: =$E$59-$L$65-$E$67-$E$48 -> 951 | M87: (mm)
B90: =Übersetzungstabelle!A50 -> Formulas | H90: =Übersetzungstabelle!$A$80 -> Check of sash weight, height-width ratio and minimum sash width | P90: =Übersetzungstabelle!$A$99 -> Note
C93: HS = H - 59 | I93: =Übersetzungstabelle!$A$83 -> Weight of sliding sash with handle (≤ 120 kg) | K93: =$L$59/1000*$L$63/1000*2.5*ROUNDDOWN($E$63,0)+$E$73 -> 56.38715 | L93: (kg) | M93: =IF($K$93<=120,Übersetzungstabelle!$A$81,Übersetzungstabelle!$A$82) -> Okay. | P93: =Übersetzungstabelle!$A$100 -> The weight of the sliding sash (including handles) must not exceed 120 kg. The maximum height-width ratio of the sliding sash is 3:1. The minimum width of the sliding sash is 580 mm.
C95: HF = H - 61 | I95: =IF(K93>120,Übersetzungstabelle!$A$84,"") -> 
C97: WS = (LW - WFZ + WSZ - 5) / 2 | I97: =Übersetzungstabelle!$A$85 -> Height-width ratio of the sliding sash (≤ 3) | K97: =$L$59/$L$63 -> 2.046845124 | M97: =IF($K$97<=3,Übersetzungstabelle!$A$81,Übersetzungstabelle!$A$82) -> Okay.
C99: WF = WFZ + WS - WSZ | I99: =IF(K97>3,Übersetzungstabelle!$A$87,"") -> 
C101: LS = LW | I101: =Übersetzungstabelle!$A$88 -> Glass width of sliding sash (≥ 580 mm) | K101: =$L$63 -> 1046 | L101: (mm) | M101: =IF($K$101>=580,Übersetzungstabelle!$A$81,Übersetzungstabelle!$A$82) -> Okay.
C103: LK = H - HP | I103: =IF(K101<580,Übersetzungstabelle!$A$89,"") -> 
C104: LWt = LW - WF - WSZ - 40
A107: =Übersetzungstabelle!$A$103 -> Willach will not assume any liability for any damages of any kind that might be resulting from the use of this profile and glass dimension calculator. (01.04.2021 - Rev. 0)
B109: =Übersetzungstabelle!$A$75 -> Glass dimensions of sliding sash | J109: =Übersetzungstabelle!$A$77 -> Note | L109: =Übersetzungstabelle!$A$78 -> Glass dimensions of sidelight
C137: =Übersetzungstabelle!$A$76 -> (Glass cutouts/drillings for handles and/or mechanical locks might probably be required.)
A140: =Übersetzungstabelle!$A$103 -> Willach will not assume any liability for any damages of any kind that might be resulting from the use of this profile and glass dimension calculator. (01.04.2021 - Rev. 0)
